[Event "Bremer Silvester Open 2019"]
[Site "Bremen"]
[Date "2019.12.28"]
[Round "3.5"]
[White "Lin, Chung-Yu Lee"]
[Black "Brinkmann, Fabian"]
[Result "0-1"]
[ECO "B18"]
[WhiteElo "1743"]
[BlackElo "2148"]
[Annotator "NA"]
[PlyCount "96"]
[EventDate "2019.12.27"]
[EventType "swiss"]
[EventCountry "GER"]
[SourceTitle "playchess.com"]
[Source "ChessBase"]
[SourceQuality "1"]
[TimeControl "40/5400+30:1800+30"]

1. e4 {[%emt 0:00:00]} c6 {[%emt 0:00:00]} 2. d4 {[%emt 0:03:20]} d5 {[%emt 0:00:00]} 3. Nc3 {[%emt 0:01:11]} dxe4 {[%emt 0:00:00]} 4. Nxe4 {[%emt 0:00:08]} Bf5 {[%emt 0:00:00]} 5. Ng3 {[%emt 0:00:19]} Bg6 {[%emt 0:00:06]} 6. Nf3 {[%emt 0:00:24]} Nd7 {[%emt 0:00:05]} 7. Bd3 {[%emt 0:01:00]} Bxd3 {[%emt 0:00:21]} 8. Qxd3 {[%emt 0:00:05]} Ngf6 {[%emt 0:00:07]} 9. O-O {[%emt 0:00:33]} e6 {[%emt 0:01:21]} 10. Bd2 {[%emt 0:12:18]} Bd6 {[%emt 0:02:43]} 11. c4 {[%emt 0:03:29]} O-O {[%emt 0:00:38]} 12. Bc3 {[%emt 0:00:40]} Qc7 {[%emt 0:03:36]} 13. Rfe1 {[%emt 0:01:19]} c5 {[%emt 0:04:08] B18: Classical Caro-Kann: 4...Bf5 sidelines} (13... Rad8 14. Rad1 a5 15. b3 Bb4 16. Qc2 Rfe8 17. Rd3 Nf8 18. Ne4 N8d7 19. Ng3 b6 20. Red1 Bxc3 21. Rxc3 {0-1 (28) Proehl,H (2395)-Dautov,R (2601) Magdeburg 2014}) 14. Rad1 {[%emt 0:03:38]} Rfd8 {[%emt 0:04:46]} 15. Ne4 $146 {[%emt 0:02:54]} ({Predecessor:} 15. d5 exd5 16. cxd5 Re8 17. Nf5 Rac8 18. Ng5 {1-0 (26) Krajcovic,A-Podhorsky,M Slovakia 2001}) 15... Be7 {[%emt 0:03:10]} (15... Nxe4 $11 16. Rxe4 Nf6) 16. d5 {[%emt 0:06:44]} exd5 {[%emt 0:02:42]} 17. cxd5 {[%emt 0:00:19]} Nxe4 {[%emt 0:01:31]} 18. Qxe4 {[%emt 0:00:39]} Bf6 {[%emt 0:01:27]} 19. d6 {[%emt 0:03:31]} Qb6 {[%emt 0:05:43]} (19... Qc6 $16) 20. Bxf6 $2 {[%emt 0:05:08]} (20. Nh4 $18) 20... Nxf6 {[%emt 0:00:13]} 21. Qf4 {[%emt 0:19:47]} Qxb2 {[%emt 0:17:56]} 22. Rb1 {[%emt 0:02:49]} Qxa2 {[%emt 0:00:45]} 23. Rxb7 {[%emt 0:00:14]} ({Better is} 23. h3 $15) 23... Qd5 {[%emt 0:00:39]} 24. Rc7 {[%emt 0:03:14]} Rxd6 {[%emt 0:09:46]} 25. h3 {[%emt 0:00:55]} Rd7 {[%emt 0:05:11]} 26. Re7 {[%emt 0:01:58]} Rxe7 {[%emt 0:03:51]} 27. Rxe7 {[%emt 0:00:12]} a5 {[%emt 0:01:10]} 28. Qc7 {[%emt 0:01:11]} Ne8 $2 {[%emt 0:06:41]} (28... a4 $19 29. Re5 Qd7 30. Qxc5 a3) 29. Qa7 $2 {[%emt 0:00:50]} (29. Qxa5 $17 Kf8 30. Qe1) 29... f6 {[%emt 0:00:31]} 30. Qb6 {[%emt 0:02:47]} a4 $2 {[%emt 0:03:16]} (30... Kf8 $19 {and Black stays clearly on top.} 31. Re2 a4) 31. Qb5 {[%emt 0:00:37]} Kf8 {[%emt 0:10:19]} 32. Rd7 $17 {[%emt 0:02:09]} Ra5 {[%emt 0:04:11]} 33. Qxa4 {[%emt 0:03:40]} Rxa4 {[%emt 0:01:33]} 34. Rxd5 {[%emt 0:00:06]} c4 {[%emt 0:01:13]} 35. Kf1 {[%emt 0:00:15]} Ke7 {[%emt 0:00:37]} 36. Ke2 {[%emt 0:01:05]} Nd6 {[%emt 0:01:14]} 37. Nd4 {[%emt 0:06:05]} Ra2+ {[%emt 0:01:55]} 38. Ke3 {[%emt 0:00:37]} Ra3+ {[%emt 0:00:05]} 39. Ke2 {[%emt 0:00:54]} Rd3 {[%emt 0:04:34]} 40. Nc6+ {[%emt 0:02:25]} Kd7 {[%emt 0:01:24]} 41. Rc5 {[%emt 0:33:11]} Rb3 {[%emt 0:04:01]} 42. Na5 {[%emt 0:00:00]} Rc3 {[%emt 0:02:07]} 43. Kd1 {[%emt 0:00:00]} g6 {[%emt 0:03:03]} 44. f3 {[%emt 0:00:00]} Ke6 {[%emt 0:01:34]} 45. Kd2 {[%emt 0:00:00]} Rd3+ {[%emt 0:00:19]} 46. Ke2 {[%emt 0:00:00]} Rd5 {[%emt 0:00:31]} 47. Rxd5 {[%emt 0:00:00]} Kxd5 {[%emt 0:00:06]} 48. Kd2 {[%emt 0:00:00]} Kc5 {[%emt 0:00:13]} 0-1

[Event "Bremer Silvester Open 2019"]
[Site "Bremen"]
[Date "2019.12.28"]
[Round "3.6"]
[White "Riewe, Gerhard"]
[Black "Berresheim, Helmut"]
[Result "1/2-1/2"]
[ECO "B25"]
[WhiteElo "2101"]
[BlackElo "2086"]
[Annotator "RC"]
[PlyCount "54"]
[EventDate "2019.12.27"]
[EventType "swiss"]
[EventCountry "GER"]
[SourceTitle "playchess.com"]
[Source "ChessBase"]
[SourceQuality "1"]
[TimeControl "40/5400+30:1800+30"]

1. e4 {[%emt 0:00:00]} c5 {[%emt 0:00:00]} 2. Nc3 {[%emt 0:03:18]} d6 {[%emt 0:00:00]} 3. g3 {[%emt 0:00:37]} Nc6 {[%emt 0:00:27]} 4. Bg2 {[%emt 0:00:12]} g6 {[%emt 0:00:12]} 5. f4 {[%emt 0:00:33]} Bg7 {[%emt 0:02:04]} 6. Nf3 {[%emt 0:01:02]} e6 {[%emt 0:02:53]} 7. O-O {[%emt 0:03:54]} Nge7 {[%emt 0:00:21]} 8. d3 {[%emt 0:01:21]} O-O {[%emt 0:00:32]} 9. Be3 {[%emt 0:01:28]} b6 {[%emt 0:01:40]} 10. Qd2 {[%emt 0:02:18]} d5 {[%emt 0:01:10]} 11. exd5 {[%emt 0:13:59]} exd5 {[%emt 0:00:17]} 12. Bf2 {[%emt 0:01:03]} d4 {[%emt 0:01:22]} 13. Nb5 {[%emt 0:03:55]} a6 {[%emt 0:14:52]} 14. Na3 {[%emt 0:00:36]} Be6 {[%emt 0:00:15]} 15. Nc4 {[%emt 0:06:17]} Bd5 {[%emt 0:09:06]} 16. Rae1 {[%emt 0:06:53]} Rc8 {[%emt 0:14:46]} 17. b3 {[%emt 0:05:54]} b5 {[%emt 0:02:05]} 18. Nce5 {[%emt 0:00:28]} Nxe5 {[%emt 0:00:07]} 19. Nxe5 {[%emt 0:00:15]} Bxg2 {[%emt 0:00:14]} 20. Kxg2 {[%emt 0:00:09]} Nc6 {[%emt 0:14:38]} 21. Nxc6 {[%emt 0:03:14]} Qd5+ {[%emt 0:00:24]} 22. Kg1 {[%emt 0:00:14]} Qxc6 {[%emt 0:00:05]} 23. Re2 {[%emt 0:03:06]} Rfe8 {[%emt 0:00:42]} 24. Rfe1 {[%emt 0:00:43]} Kf8 {[%emt 0:02:34]} 25. Rxe8+ {[%emt 0:08:34]} Rxe8 {[%emt 0:00:09]} 26. Rxe8+ {[%emt 0:00:05]} Kxe8 {[%emt 0:00:40]} 27. Qd1 {[%emt 0:33:22]} Bf8 1/2-1/2

[Event "Bremer Silvester Open 2019"]
[Site "Bremen"]
[Date "2019.12.28"]
[Round "4.1"]
[White "Hoerstmann, Martin"]
[Black "Grishchenko, Sergey"]
[Result "0-1"]
[ECO "D33"]
[WhiteElo "2208"]
[BlackElo "2404"]
[Annotator "ChessBase"]
[PlyCount "86"]
[EventDate "2019.12.27"]
[EventType "swiss"]
[EventCountry "GER"]
[SourceTitle "playchess.com"]
[Source "ChessBase"]
[SourceQuality "1"]
[TimeControl "40/5400+30:1800+30"]

1. d4 {[%emt 0:00:00]} d5 {[%emt 0:00:39]} 2. c4 {[%emt 0:00:00]} e6 {[%emt 0:02:36]} 3. Nc3 {[%emt 0:01:01]} c5 {[%emt 0:00:13]} 4. cxd5 {[%emt 0:00:21]} exd5 {[%emt 0:01:13]} 5. Nf3 {[%emt 0:00:23]} Nc6 {[%emt 0:00:06]} 6. g3 {[%emt 0:00:29]} c4 {[%emt 0:00:07]} 7. Bg2 {[%emt 0:00:34]} Bb4 {[%emt 0:00:05]} 8. O-O {[%emt 0:00:27]} Nge7 {[%emt 0:00:08]} 9. e4 {[%emt 0:00:43]} dxe4 {[%emt 0:00:12]} 10. Nxe4 {[%emt 0:00:08]} O-O {[%emt 0:00:08]} 11. Qc2 {[%emt 0:00:53]} Bf5 {[%emt 0:09:17]} 12. Nh4 {[%emt 0:00:58]} Nxd4 {[%emt 0:39:48]} 13. Qxc4 {[%emt 0:01:51]} Bxe4 {[%emt 0:04:28]} 14. Bxe4 {[%emt 0:01:09]} Nec6 {[%emt 0:00:07]} 15. Be3 {[%emt 0:24:03]} Qf6 {[%emt 0:01:13]} 16. Rfd1 {[%emt 0:13:57]} Rad8 {[%emt 0:02:31]} 17. Bd5 {[%emt 0:14:27]} Qe5 {[%emt 0:06:56]} 18. Bg2 {[%emt 0:11:37]} Bc5 {[%emt 0:10:21]} 19. Re1 {[%emt 0:09:42]} Bb6 {[%emt 0:04:30]} 20. Rac1 {[%emt 0:02:58]} Qf6 {[%emt 0:01:29]} 21. f4 {[%emt 0:05:42]} h6 {[%emt 0:09:21]} 22. Kh1 {[%emt 0:02:07]} Rd6 {[%emt 0:03:58]} 23. Be4 {[%emt 0:04:01]} Rfd8 {[%emt 0:00:38]} 24. b4 {[%emt 0:00:48]} Re6 {[%emt 0:00:17]} 25. Bf2 {[%emt 0:00:42]} Rde8 {[%emt 0:01:30]} 26. Bd5 {[%emt 0:00:17]} Rxe1+ {[%emt 0:00:34]} 27. Rxe1 {[%emt 0:00:05]} Rxe1+ {[%emt 0:00:07]} 28. Bxe1 {[%emt 0:00:03]} g5 {[%emt 0:00:45]} 29. Ng2 {[%emt 0:00:37]} Qe7 {[%emt 0:00:31]} 30. Bd2 {[%emt 0:01:19]} g4 {[%emt 0:00:40]} 31. Qd3 {[%emt 0:00:37]} Qd6 {[%emt 0:00:21]} 32. Qe4 {[%emt 0:00:10]} Ne7 {[%emt 0:00:16]} 33. Bxb7 {[%emt 0:00:08]} Nf3 {[%emt 0:00:20]} 34. Be1 {[%emt 0:01:28]} f5 {[%emt 0:00:57]} 35. Qc4+ {[%emt 0:00:48]} Kf8 {[%emt 0:00:04]} 36. Qc3 {[%emt 0:01:26]} Qd1 {[%emt 0:00:48]} 37. h3 {[%emt 0:01:32]} Qe2 {[%emt 0:00:23]} 38. Qf6+ {[%emt 0:00:48]} Kg8 {[%emt 0:00:40]} 39. Bd5+ {[%emt 0:00:07]} Nxd5 {[%emt 0:00:06]} 40. Qg6+ {[%emt 0:00:16]} Kf8 {[%emt 0:00:07]} 41. Qxh6+ {[%emt 0:31:12]} Ke8 {[%emt 0:31:06]} 42. Qc6+ {[%emt 0:00:00]} Ke7 {[%emt 0:00:00]} 43. Qb7+ {[%emt 0:00:00]} Nc7 {[%emt 0:00:00]} 0-1

[Event "Bremer Silvester Open 2019"]
[Site "Bremen"]
[Date "2019.12.28"]
[Round "4.2"]
[White "Brinkmann, Fabian"]
[Black "Reuker, Jari"]
[Result "1/2-1/2"]
[ECO "C67"]
[WhiteElo "2148"]
[BlackElo "2383"]
[Annotator "NA"]
[PlyCount "61"]
[EventDate "2019.12.27"]
[EventType "swiss"]
[EventCountry "GER"]
[SourceTitle "playchess.com"]
[Source "ChessBase"]
[SourceQuality "1"]
[TimeControl "40/5400+30:1800+30"]

1. e4 {[%emt 0:00:07]} e5 {[%emt 0:00:00]} 2. Nf3 {[%emt 0:00:08]} Nc6 {[%emt 0:00:00]} 3. Bb5 {[%emt 0:00:13]} Nf6 {[%emt 0:00:00]} 4. O-O {[%emt 0:01:13]} Nxe4 {[%emt 0:01:26]} 5. Re1 {[%emt 0:00:40]} Nd6 {[%emt 0:00:07]} 6. Nxe5 {[%emt 0:01:00]} Be7 {[%emt 0:00:07]} 7. Bf1 {[%emt 0:00:17]} Nxe5 {[%emt 0:00:25]} 8. Rxe5 {[%emt 0:00:02]} O-O {[%emt 0:00:09]} 9. d4 {[%emt 0:00:18]} Bf6 {[%emt 0:00:12]} 10. Re2 {[%emt 0:00:20]} b6 {[%emt 0:05:06]} 11. Re1 {[%emt 0:00:38]} Bb7 {[%emt 0:03:33]} 12. Bf4 {[%emt 0:00:48]} Ne4 {[%emt 0:10:15]} 13. Nd2 {[%emt 0:02:46]} d5 {[%emt 0:05:43]} 14. c3 {[%emt 0:01:06]} Qd7 {[%emt 0:03:53]} 15. Qf3 {[%emt 0:05:35]} c5 {[%emt 0:07:04]} 16. dxc5 {[%emt 0:14:19]} Nxc5 {[%emt 0:05:49]} 17. Qg3 {[%emt 0:05:51]} Rfe8 {[%emt 0:10:27]} 18. Nb3 {[%emt 0:11:28]} Nxb3 {[%emt 0:16:46]} 19. axb3 {[%emt 0:00:06]} d4 {[%emt 0:03:10]} 20. Be5 {[%emt 0:06:19]} Bxe5 {[%emt 0:02:19]} 21. Rxe5 {[%emt 0:00:01]} Rxe5 {[%emt 0:00:57]} 22. Qxe5 {[%emt 0:00:03]} d3 {[%emt 0:02:43]} 23. Rd1 {[%emt 0:02:10]} d2 {[%emt 0:02:21]} 24. Bb5 {[%emt 0:01:42]} Qg4 {[%emt 0:09:51]} 25. f3 {[%emt 0:00:15]} Bxf3 {[%emt 0:01:06]} 26. Rxd2 {[%emt 0:00:05]} Be4 {[%emt 0:06:24]} 27. Qe7 {[%emt 0:08:26]} h6 {[%emt 0:01:03]} 28. Bc4 {[%emt 0:03:16]} Qf4 {[%emt 0:01:57]} 29. Bxf7+ {[%emt 0:10:56]} Qxf7 {[%emt 0:00:06]} 30. Qxe4 {[%emt 0:00:08]} Re8 {[%emt 0:00:03]} 31. Qf3 {[%emt 0:02:08]} 1/2-1/2

[Event "Bremer Silvester Open 2019"]
[Site "Bremen"]
[Date "2019.12.28"]
[Round "4.3"]
[White "Berresheim, Helmut"]
[Black "Wachinger, Nikolas"]
[Result "0-1"]
[ECO "E97"]
[WhiteElo "2086"]
[BlackElo "2234"]
[Annotator "ChessBase"]
[PlyCount "80"]
[EventDate "2019.12.27"]
[EventType "swiss"]
[EventCountry "GER"]
[SourceTitle "playchess.com"]
[Source "ChessBase"]
[SourceQuality "1"]
[TimeControl "40/5400+30:1800+30"]

1. d4 {[%emt 0:00:00]} Nf6 {[%emt 0:00:00]} 2. c4 {[%emt 0:00:00]} g6 {[%emt 0:00:00]} 3. Nc3 {[%emt 0:00:00]} Bg7 {[%emt 0:00:00]} 4. e4 {[%emt 0:00:00]} d6 {[%emt 0:00:00]} 5. Nf3 {[%emt 0:00:00]} O-O {[%emt 0:00:00]} 6. Be2 {[%emt 0:00:02]} e5 {[%emt 0:00:07]} 7. O-O {[%emt 0:00:09]} Nc6 {[%emt 0:00:06]} 8. d5 {[%emt 0:00:07]} Ne7 {[%emt 0:00:05]} 9. Nd2 {[%emt 0:00:07]} a5 {[%emt 0:00:07]} 10. a3 {[%emt 0:01:21]} Nd7 {[%emt 0:00:08]} 11. Rb1 {[%emt 0:00:36]} f5 {[%emt 0:00:07]} 12. b4 {[%emt 0:00:10]} Kh8 {[%emt 0:00:08]} 13. f3 {[%emt 0:00:41]} f4 {[%emt 0:00:08]} 14. Nb5 {[%emt 0:09:02]} b6 {[%emt 0:01:57]} 15. Qc2 {[%emt 0:02:47]} a4 {[%emt 0:00:45]} 16. Nc3 {[%emt 0:02:58]} g5 {[%emt 0:04:40]} 17. Nxa4 {[%emt 0:15:40]} Nf6 {[%emt 0:02:22]} 18. c5 {[%emt 0:09:47]} h5 {[%emt 0:07:16]} 19. cxd6 {[%emt 0:14:01]} cxd6 {[%emt 0:00:45]} 20. Nc3 {[%emt 0:00:38]} g4 {[%emt 0:04:24]} 21. Nb5 {[%emt 0:00:33]} Ne8 {[%emt 0:09:38]} 22. fxg4 {[%emt 0:01:56]} hxg4 {[%emt 0:00:12]} 23. g3 {[%emt 0:00:11]} Ng6 {[%emt 0:04:25]} 24. Nc4 {[%emt 0:02:32]} Bd7 {[%emt 0:19:09]} 25. a4 {[%emt 0:05:30]} Bh6 {[%emt 0:13:38]} 26. Bd3 {[%emt 0:12:21]} Kg7 {[%emt 0:01:25]} 27. Qf2 {[%emt 0:05:07]} fxg3 {[%emt 0:13:44]} 28. Bxh6+ {[%emt 0:00:06]} Kxh6 {[%emt 0:00:08]} 29. Qxg3 {[%emt 0:08:51]} Rxf1+ {[%emt 0:00:38]} 30. Bxf1 {[%emt 0:00:51]} Rxa4 {[%emt 0:10:02]} 31. Nbxd6 {[%emt 0:00:47]} Nxd6 {[%emt 0:00:13]} 32. Nxd6 {[%emt 0:00:02]} Qf8 {[%emt 0:01:19]} 33. Nc4 {[%emt 0:02:23]} Rxb4 {[%emt 0:03:05]} 34. Qe3+ {[%emt 0:02:09]} Kh5 {[%emt 0:00:11]} 35. Rxb4 {[%emt 0:00:10]} Qxb4 {[%emt 0:00:02]} 36. Nxb6 {[%emt 0:00:10]} Bb5 {[%emt 0:00:55]} 37. Bxb5 {[%emt 0:03:20]} Qxb5 {[%emt 0:00:03]} 38. d6 {[%emt 0:00:05]} Qb1+ {[%emt 0:00:23]} 39. Kf2 {[%emt 0:00:08]} Qb2+ {[%emt 0:00:13]} 40. Kg3 {[%emt 0:04:42]} Nf4 {[%emt 0:00:51]} 0-1

[Event "Bremer Silvester Open 2019"]
[Site "Bremen"]
[Date "2019.12.28"]
[Round "4.4"]
[White "Celik, Abdullah"]
[Black "Riewe, Gerhard"]
[Result "1/2-1/2"]
[ECO "A92"]
[WhiteElo "2048"]
[BlackElo "2101"]
[Annotator "NA"]
[PlyCount "178"]
[EventDate "2019.12.27"]
[EventType "swiss"]
[EventCountry "GER"]
[SourceTitle "playchess.com"]
[Source "ChessBase"]
[SourceQuality "1"]
[TimeControl "40/5400+30:1800+30"]

1. d4 {[%emt 0:00:00]} d5 {[%emt 0:00:00]} 2. c4 {[%emt 0:00:00]} e6 {[%emt 0:00:00]} 3. Nf3 {[%emt 0:00:00]} Nf6 {[%emt 0:00:00]} 4. g3 {[%emt 0:00:00]} c6 {[%emt 0:00:34]} 5. Bg2 {[%emt 0:00:00]} Be7 {[%emt 0:00:15]} 6. O-O {[%emt 0:00:00]} O-O {[%emt 0:00:57]} 7. Qc2 {[%emt 0:00:00]} Ne4 {[%emt 0:03:07]} 8. Nbd2 {[%emt 0:00:05]} f5 {[%emt 0:00:13]} 9. Ne5 {[%emt 0:01:02]} Nxd2 {[%emt 0:01:35]} 10. Bxd2 {[%emt 0:00:28]} Nd7 {[%emt 0:00:10]} 11. Nd3 {[%emt 0:08:50]} Bf6 {[%emt 0:03:23]} 12. e3 {[%emt 0:01:31]} g6 {[%emt 0:01:25]} 13. a4 {[%emt 0:04:51]} Bg7 {[%emt 0:02:28]} 14. a5 {[%emt 0:00:34]} a6 {[%emt 0:01:24]} 15. Bb4 {[%emt 0:13:44]} Re8 {[%emt 0:00:49]} 16. Rfd1 {[%emt 0:05:28]} Nf6 {[%emt 0:03:37]} 17. Ne5 {[%emt 0:02:28]} Ne4 {[%emt 0:07:27]} 18. f3 {[%emt 0:04:36]} Ng5 {[%emt 0:04:12]} 19. h4 {[%emt 0:06:14]} Nf7 {[%emt 0:01:54]} 20. Nxf7 {[%emt 0:05:02]} Kxf7 {[%emt 0:00:05]} 21. f4 {[%emt 0:00:27]} Bf6 {[%emt 0:04:50]} 22. Kf2 {[%emt 0:00:45]} Rg8 {[%emt 0:01:54]} 23. Rh1 {[%emt 0:02:43]} Bd7 {[%emt 0:02:22]} 24. Bc5 {[%emt 0:01:34]} Rg7 {[%emt 0:02:23]} 25. b4 {[%emt 0:01:22]} h6 {[%emt 0:05:58]} 26. Bf3 {[%emt 0:02:35]} Kg8 {[%emt 0:05:13]} 27. Qe2 {[%emt 0:02:23]} Be8 {[%emt 0:08:40]} 28. Qf1 {[%emt 0:01:55]} Be7 {[%emt 0:13:15]} 29. Bxe7 {[%emt 0:03:48]} Qxe7 {[%emt 0:00:21]} 30. c5 {[%emt 0:00:03]} Bd7 {[%emt 0:05:30]} 31. Rd1 {[%emt 0:05:22]} Rf8 {[%emt 0:01:19]} 32. Qh3 {[%emt 0:03:35]} Kf7 {[%emt 0:04:43]} 33. g4 {[%emt 0:06:54]} fxg4 {[%emt 0:02:51]} 34. Bxg4 {[%emt 0:13:27]} h5 {[%emt 0:00:38]} 35. Be2 {[%emt 0:00:07]} e5 {[%emt 0:00:30]} 36. Qg3 {[%emt 0:00:03]} exf4 {[%emt 0:01:31]} 37. exf4 {[%emt 0:00:05]} Kg8 {[%emt 0:01:09]} 38. Rhf1 {[%emt 0:03:28]} Qe4 {[%emt 0:02:17]} 39. Bf3 {[%emt 0:02:23]} Rxf4 {[%emt 0:04:46]} 40. Kg2 {[%emt 0:00:09]} Rxf3 {[%emt 0:02:49]} 41. Qxf3 {[%emt 0:03:00]} Qxf3+ {[%emt 0:00:41]} 42. Rxf3 {[%emt 0:00:54]} Bg4 {[%emt 0:00:10]} 43. Re1 {[%emt 0:01:39]} Bxf3+ {[%emt 0:00:40]} 44. Kxf3 {[%emt 0:00:03]} Rf7+ {[%emt 0:03:32]} 45. Kg3 {[%emt 0:00:04]} Kf8 {[%emt 0:02:08]} 46. Re6 {[%emt 0:01:58]} Kg7 {[%emt 0:05:27]} 47. Rd6 {[%emt 0:01:05]} Re7 {[%emt 0:01:26]} 48. b5 {[%emt 0:08:55]} axb5 {[%emt 0:01:53]} 49. a6 {[%emt 0:00:02]} bxa6 {[%emt 0:00:11]} 50. Rxc6 {[%emt 0:00:02]} Re4 {[%emt 0:03:30]} 51. Rxa6 {[%emt 0:00:23]} Rxd4 {[%emt 0:00:19]} 52. Rb6 {[%emt 0:00:22]} b4 {[%emt 0:01:10]} 53. c6 {[%emt 0:00:45]} Rc4 {[%emt 0:01:53]} 54. Rb7+ {[%emt 0:05:20]} Kf6 {[%emt 0:01:20]} 55. c7 {[%emt 0:00:01]} Kf5 {[%emt 0:01:35]} 56. Kf3 {[%emt 0:01:22]} b3 {[%emt 0:03:18]} 57. Ke3 {[%emt 0:00:41]} b2 {[%emt 0:01:03]} 58. Rxb2 {[%emt 0:03:17]} Rxc7 {[%emt 0:00:09]} 59. Rf2+ {[%emt 0:00:59]} Ke5 {[%emt 0:01:31]} 60. Rg2 {[%emt 0:00:10]} Rc3+ {[%emt 0:01:11]} 61. Kd2 {[%emt 0:00:08]} Rh3 {[%emt 0:00:37]} 62. Rxg6 {[%emt 0:00:32]} Rxh4 {[%emt 0:00:39]} 63. Rg5+ {[%emt 0:02:40]} Kd4 {[%emt 0:00:51]} 64. Kd1 {[%emt 0:01:06]} Kc4 {[%emt 0:01:22]} 65. Kd2 {[%emt 0:01:23]} Rh2+ {[%emt 0:00:59]} 66. Kd1 {[%emt 0:00:07]} d4 {[%emt 0:00:21]} 67. Rg3 {[%emt 0:00:15]} h4 {[%emt 0:01:58]} 68. Rf3 {[%emt 0:00:02]} h3 {[%emt 0:01:03]} 69. Ke1 {[%emt 0:00:02]} d3 {[%emt 0:02:08]} 70. Rf8 {[%emt 0:00:16]} Re2+ {[%emt 0:00:28]} 71. Kf1 {[%emt 0:01:27]} h2 {[%emt 0:02:33]} 72. Rc8+ {[%emt 0:05:06]} Kd4 {[%emt 0:00:21]} 73. Rd8+ {[%emt 0:00:13]} Ke4 {[%emt 0:00:08]} 74. Rd4+ {[%emt 0:01:57]} Kf5 {[%emt 0:01:39]} 75. Rf4+ {[%emt 0:00:03]} Ke5 {[%emt 0:00:34]} 76. Rf5+ {[%emt 0:00:05]} Ke6 {[%emt 0:01:40]} 77. Rf6+ {[%emt 0:00:05]} Ke7 {[%emt 0:00:05]} 78. Rf7+ {[%emt 0:00:02]} Ke8 {[%emt 0:00:08]} 79. Rf8+ {[%emt 0:00:04]} Kd7 {[%emt 0:00:07]} 80. Rd8+ {[%emt 0:00:04]} Kc7 {[%emt 0:00:17]} 81. Rd7+ {[%emt 0:00:23]} Kb6 {[%emt 0:00:32]} 82. Rd6+ {[%emt 0:00:18]} Kc5 {[%emt 0:01:56]} 83. Rd5+ {[%emt 0:00:05]} Kc4 {[%emt 0:00:05]} 84. Rd4+ {[%emt 0:00:16]} Kc3 {[%emt 0:00:10]} 85. Rxd3+ {[%emt 0:00:08]} Kc2 {[%emt 0:00:06]} 86. Rh3 {[%emt 0:00:25]} Rd2 {[%emt 0:00:17]} 87. Rh8 {[%emt 0:00:13]} Rd8 {[%emt 0:01:51]} 88. Rxh2+ {[%emt 0:00:10]} Rd2 {[%emt 0:00:05]} 89. Rxd2+ {[%emt 0:00:02]} Kxd2 {[%emt 0:00:06]} 1/2-1/2

[Event "Bremer Silvester Open 2019"]
[Site "Bremen"]
[Date "2019.12.28"]
[Round "4.5"]
[White "Meyer, Thorsten"]
[Black "Villwock, Martin"]
[Result "1/2-1/2"]
[ECO "B33"]
[WhiteElo "2295"]
[BlackElo "2108"]
[Annotator "NA"]
[PlyCount "93"]
[EventDate "2019.12.27"]
[EventType "swiss"]
[EventCountry "GER"]
[SourceTitle "playchess.com"]
[Source "ChessBase"]
[SourceQuality "1"]
[TimeControl "40/5400+30:1800+30"]

1. e4 {[%emt 0:00:00]} c5 {[%emt 0:00:00]} 2. Nf3 {[%emt 0:00:00]} Nc6 {[%emt 0:00:00]} 3. d4 {[%emt 0:00:00]} cxd4 {[%emt 0:00:05]} 4. Nxd4 {[%emt 0:00:03]} Nf6 {[%emt 0:00:16]} 5. Nc3 {[%emt 0:01:14]} e5 {[%emt 0:00:16]} 6. Ndb5 {[%emt 0:00:10]} d6 {[%emt 0:00:12]} 7. Bg5 {[%emt 0:01:01]} a6 {[%emt 0:00:14]} 8. Na3 {[%emt 0:02:01]} b5 {[%emt 0:00:22]} 9. Bxf6 {[%emt 0:01:53]} gxf6 {[%emt 0:00:11]} 10. Nd5 {[%emt 0:00:35]} f5 {[%emt 0:00:45]} 11. Bd3 {[%emt 0:00:44]} Be6 {[%emt 0:00:25]} 12. c3 {[%emt 0:01:52]} Bg7 {[%emt 0:01:18]} 13. O-O {[%emt 0:00:31]} Bxd5 {[%emt 0:02:14]} 14. exd5 {[%emt 0:01:51]} Ne7 {[%emt 0:00:13]} 15. Nc2 {[%emt 0:03:33]} O-O {[%emt 0:01:39]} 16. a4 {[%emt 0:01:02]} e4 {[%emt 0:02:26]} 17. Be2 {[%emt 0:00:49]} Qb6 {[%emt 0:07:44]} 18. axb5 {[%emt 0:02:33]} axb5 {[%emt 0:00:13]} 19. Qd2 {[%emt 0:01:31]} Ng6 {[%emt 0:02:29]} 20. Rfe1 {[%emt 0:27:04]} f4 {[%emt 0:08:49]} 21. Bf1 {[%emt 0:07:52]} Rxa1 {[%emt 0:03:42]} 22. Rxa1 {[%emt 0:00:08]} Re8 {[%emt 0:00:40]} 23. Qe2 {[%emt 0:02:04]} e3 {[%emt 0:04:30]} 24. Nb4 {[%emt 0:06:18]} f3 {[%emt 0:07:14]} 25. Qxf3 {[%emt 0:02:53]} Bh6 {[%emt 0:00:47]} 26. fxe3 {[%emt 0:05:25]} Rxe3 {[%emt 0:09:36]} 27. Qf2 {[%emt 0:00:34]} Qd8 {[%emt 0:04:27]} 28. Kh1 {[%emt 0:02:49]} Qe8 {[%emt 0:03:31]} 29. Nc2 {[%emt 0:03:01]} Re5 {[%emt 0:01:15]} 30. Re1 {[%emt 0:01:54]} Nf4 {[%emt 0:00:56]} 31. Rxe5 {[%emt 0:02:07]} Qxe5 {[%emt 0:00:20]} 32. Bxb5 {[%emt 0:02:49]} Qxd5 {[%emt 0:01:09]} 33. Nd4 {[%emt 0:01:29]} Ne6 {[%emt 0:01:49]} 34. Nxe6 {[%emt 0:04:35]} Qd1+ {[%emt 0:00:53]} 35. Qg1 {[%emt 0:01:17]} Qxg1+ {[%emt 0:00:29]} 36. Kxg1 {[%emt 0:00:01]} fxe6 {[%emt 0:00:08]} 37. Kf2 {[%emt 0:00:26]} Bc1 {[%emt 0:00:23]} 38. b3 {[%emt 0:00:30]} Bd2 {[%emt 0:00:23]} 39. c4 {[%emt 0:00:09]} Kf7 {[%emt 0:00:17]} 40. Kf3 {[%emt 0:00:21]} Kf6 {[%emt 0:00:18]} 41. Ke4 {[%emt 0:30:29]} Bb4 {[%emt 0:30:26]} 42. Be8 {[%emt 0:00:32]} h6 {[%emt 0:00:22]} 43. Bh5 {[%emt 0:00:25]} Kg5 {[%emt 0:02:28]} 44. Bf3 {[%emt 0:01:42]} Kf6 {[%emt 0:00:10]} 45. Bg4 {[%emt 0:01:13]} Ke7 {[%emt 0:00:54]} 46. Be2 {[%emt 0:09:34]} Kf6 {[%emt 0:02:25]} 47. Bf3 {[%emt 0:04:26] Ke5+} 1/2-1/2